Cogmind - Beta 16.1 @@@ ROGUE MODE // 2026.02.18 @ 01:42:49 Player: TheSkyeDoctor Result: Destroyed by H-61 Shepherd with Heavy Assault Cannon Performance ------------- Evolutions (3) 1500 Regions Visited (6) 1200 Robots Destroyed (66) 330 Value Destroyed (2225) 2225 Prototype IDs (25) 500 Alien Tech Used (0) 0 Bonus (549) 549 TOTAL SCORE: 6304 Bonus ------- Follower Combat Kills 249 Aligned with FarCom 300 Cogmind --------- Core Integrity 0/700 Matter 144/400 Energy 150/150 System Corruption 6% Temperature Cool (0) Movement Walking (270) Ox2 Location -7/Factory Parts ------- > --- POWER (1) -------- Micro Nuclear Core > --- PROPULSION (2) --- VSS Leg VSS Leg > --- UTILITY (8) ------ High-capacity Storage Unit Medium Matter Pod Improved Signal Interpreter 0b10 Alert Chip Advanced Targeting Computer > --- WEAPON (2) ------- Rocket Launcher > --- INVENTORY (20) --- Micro Nuclear Core Light Treads Aluminum Leg Aluminum Leg Aluminum Leg Aluminum Leg VSS Leg Seismic Detector Advanced ECM Suite Improved Medium Armor Plating Improved Medium Armor Plating Improved Medium Armor Plating Hacking Suite Flak Gun Peak State ------------ > --- POWER ------------ Micro Nuclear Core > --- PROPULSION ------- Light Treads Armored Treads > --- UTILITY ---------- Scrap Suit High-capacity Storage Unit 0b10 Alert Chip Advanced Targeting Computer Weapon Cycler Medium Armor Plating High-powered Tractor Beam > --- WEAPON ----------- Greatsword > --- INVENTORY -------- Nuclear Core Nuclear Core Light Treads Light Treads Improved Signal Interpreter Seismic Detector Improved Targeting Computer Advanced ECM Suite EM Pulse Gun Medium Laser Field Laser Gauss Rifle Mini Grenade Launcher Improved Grenade Launcher [Rating: 46] Favorites ----------- Power Micro Nuclear Core Engine Ion Engine Power Core Micro Nuclear Core Propulsion Light Treads Treads Light Treads Leg Improved Carbon-fiber Leg Wheel Wheel Utility High-capacity Storage Unit Device Weapon Cycler Storage High-capacity Storage Unit Processor 0b10 Alert Chip Hackware Hacking Suite Protection Light Armor Plating Weapon Beam Cannon Energy Gun EM Pulse Gun Energy Cannon Beam Cannon Ballistic Gun Gauss Rifle Ballistic Cannon Flak Cannon Launcher Grenade Launcher Slashing Weapon Greatsword Build | -11 -10 -10 -10 -9 -8 -7 ------- Run | Yrd Mat Min Exi Min Mat Fac Slots Evolved 6 | . . . . . 4 2 Power . | . . . . . . . Propulsion . | . . . . . . . Utility 6 | . . . . . 4 2 Weapon . | . . . . . . . Parts Attached 52 | 8 1 1 1 . 9 32 Power 6 | 2 . . . . 1 3 Engine 2 | 2 . . . . . . Core 4 | . . . . . 1 3 Reactor . | . . . . . . . Propulsion 13 | 2 . . . . 1 10 Treads 4 | 2 . . . . 1 1 Leg 6 | . . . . . . 6 Wheel 3 | . . . . . . 3 Hover . | . . . . . . . Flight . | . . . . . . . Utility 17 | 2 . . 1 . 4 10 Device 6 | 1 . . . . 2 3 Storage 3 | 1 . . 1 . . 1 Processor 4 | . . . . . 1 3 Hackware 1 | . . . . . . 1 Protection 3 | . . . . . 1 2 Artifact . | . . . . . . . Weapon 16 | 2 1 1 . . 3 9 Energy Gun 6 | 2 . . . . . 4 Energy Cannon 1 | . 1 . . . . . Ballistic Gun 1 | . . . . . . 1 Ballistic Cannon 2 | . . . . . 1 1 Launcher 5 | . . 1 . . 1 3 Special Weapon . | . . . . . . . Impact Weapon . | . . . . . . . Slashing Weapon 1 | . . . . . 1 . Piercing Weapon . | . . . . . . . Special Melee Weapon . | . . . . . . . Unidentified Prototypes 2 | . . . . . . 2 Parts Lost 32 | . . . . . 5 27 Power 3 | . . . . . 1 2 Propulsion 6 | . . . . . . 6 Utility 9 | . . . . . 1 8 Weapon 14 | . . . . . 3 11 Highest Loss Streak 8 | . . . . . 2 8 To Critical Strikes 1 | . . . . . 1 . Average Backups 9 | 1 1 2 4 6 7 12 Power 1 | . 1 1 1 1 1 1 Propulsion 2 | . . . . . 1 3 Utility 2 | . . . 1 3 2 3 Weapon 3 | . . 1 2 2 2 4 Tool/Special . | . . . . . . . Unused Backups 13 | . . . 1 . . 12 Power 1 | . . . . . . 1 Propulsion 5 | . . . . . . 5 Utility 5 | . . . 1 . . 4 Weapon 2 | . . . . . . 2 Tool/Special . | . . . . . . . Average Slot Usage (%) 91 | . 100 100 100 100 88 89 Engine 4 | . 14 14 14 14 4 . Core 4 | . . . . . 3 6 Treads 13 | . 28 28 28 28 18 5 Leg 4 | . . . . . . 8 Device 17 | . 14 14 14 14 22 16 Storage 11 | . 14 14 14 14 9 12 Processor 14 | . . . . . 8 23 Protection 2 | . . . . . 4 3 Energy Gun 3 | . 18 9 . . 4 2 Energy Cannon 4 | . 9 14 14 14 5 . Ballistic Cannon 1 | . . . . . 4 1 Launcher 3 | . . 4 14 14 2 2 Slashing Weapon 1 | . . . . . . 2 Peak Build Rating 46 | 7 7 8 8 8 38 46 Average Rating 30 | 5 7 7 8 8 29 41 On Entrance 10 | . 7 7 8 8 8 38 Avg Prop Armor Cover (%) . | . . . . . . . Naked Turns . | . . . . . . . Heaviest Build 67 | 15 16 17 52 52 63 67 Greatest Support 40 | 40 40 40 40 40 40 40 Greatest Overweight (x) 5 | . . . 1 1 1 5 Average Overweight (x) . | . . . . 1 1 1 Largest Inventory Capacity 20 | 8 8 8 20 20 20 20 Average Capacity 17 | 7 8 8 10 20 20 20 Most Carried 18 | 5 2 5 8 7 16 18 Average Carried 9 | 1 1 2 5 7 8 12 Final Capacity 20 | 8 8 8 20 20 20 20 Final Carried 14 | 1 2 5 7 7 14 14 Scrap Suit Usage (%) 43 | . . . . . 100 34 Parts Cannibalized 9 | . . . . . 5 4 Class Distribution -------------------- 100% | Mutant Dominant Class ---------------- Mutant | -10/Materials Mutant | -10/Mines Mutant | -10/Exiles Mutant | -9/Mines Mutant | -8/Materials Mutant | -7/Factory Resources | -11 -10 -10 -10 -9 -8 -7 ----------- Run | Yrd Mat Min Exi Min Mat Fac Matter Collected 1397 | 280 . 20 . . 318 779 Remotely 310 | . . . . . . 310 Salvage Created 2207 | 82 . . . . 715 1410 Parts 161 | 7 . . . . 43 111 Haulers Intercepted 1 | . . . . . . 1 Recyclers Shooed 2 | . . . . . 1 1 Parts Field Recycled . | . . . . . . . Retrieved Matter . | . . . . . . . Parts Self-Destructed . | . . . . . . . Prevented . | . . . . . . . Parts Restored . | . . . . . . . Kills | -11 -10 -10 -10 -9 -8 -7 ------- Run | Yrd Mat Min Exi Min Mat Fac Combat Hostiles Destroyed 44 | . . . . . 16 28 Melee 7 | . . . . . 3 4 Guns 6 | . . . . . 1 5 Cannons 11 | . . . . . 9 2 AOE 20 | . . . . . 3 17 Classes Destroyed 16 | 2 . . . . 6 8 Worker 5 | . . . . . . 5 Builder 6 | . . . . . 1 5 Tunneler 1 | 1 . . . . . . Hauler 1 | . . . . . . 1 Recycler 5 | 1 . . . . 1 3 Mechanic 1 | . . . . . . 1 Operator 1 | . . . . . . 1 Watcher 2 | . . . . . 1 1 Swarmer 7 | . . . . . 3 4 Grunt 17 | . . . . . 8 9 Duelist 1 | . . . . . . 1 Sentry 7 | . . . . . 4 3 Specialist 2 | . . . . . . 2 Hunter 3 | . . . . . 1 2 Programmer 6 | . . . . . . 6 Heavy 1 | . . . . . . 1 Best Kill Streak 10 | 1 . . . . 4 10 Combat Bots Only 5 | . . . . . 3 5 Max Kills in Single Turn 5 | 1 . . . . 4 5 Gunslinging . | . . . . . . . Exploded 4 | . . . . . 3 4 Melee 1 | . . . . . 1 1 Uniques/NPCs Destroyed . | . . . . . . . Combat | -11 -10 -10 -10 -9 -8 -7 -------- Run | Yrd Mat Min Exi Min Mat Fac Hostile Shots Fired 440 | . . . . . 105 335 Missed 123 | . . . . . 24 99 Hits 317 | . . . . . 81 236 Melee 5 | . . . . . . 5 Projectile 312 | . . . . . 81 231 Critical Strikes 13 | . . . . . 7 6 Damage Taken 4726 | . . . . . 1260 3466 Core 845 | . . . . . 125 720 Absorbed by Shields . | . . . . . . . Regen/Repaired (Parts) 79 | . . . . . 43 36 Core Remaining (%) 92 | 100 . . . 100 77 . Volleys Fired 121 | 5 . . . . 43 73 Largest 2 | 2 . . . . 2 2 Hottest 113 | 90 . . . . 97 113 Shots Fired 204 | 10 . . . . 80 114 Gun 94 | 10 . . . . 14 70 Cannon 81 | . . . . . 64 17 Launcher 29 | . . . . . 2 27 Special . | . . . . . . . Kinetic 63 | . . . . . 32 31 Thermal 95 | 5 . . . . 44 46 Explosive 29 | . . . . . 2 27 Electromagnetic 17 | 5 . . . . 2 10 Robot Hit Streak 14 | 5 . . . . 9 14 Robot Miss Streak 6 | 1 . . . . 6 2 Penetration Max 1 | . . . . . . 1 Secondary Targets . | . . . . . . . Shots Hit Robots 173 | 7 . . . . 70 96 Core Hits 134 | 3 . . . . 56 75 Critical Kills . | . . . . . . . Critical Parts Destroyed . | . . . . . . . Critical Strikes 9 | 1 . . . . 2 6 Burn 5 | 1 . . . . 2 2 Blast 2 | . . . . . . 2 Sever 2 | . . . . . . 2 Melee Attacks 11 | . . . . . 4 7 Impact . | . . . . . . . Slashing 11 | . . . . . 4 7 Piercing . | . . . . . . . Sneak Attacks . | . . . . . . . Combat Hostiles . | . . . . . . . Follow-up Attacks . | . . . . . . . Damage Inflicted 5672 | 87 . . . . 1562 4023 Guns 1016 | 87 . . . . 127 802 Cannons 1593 | . . . . . 947 646 Explosions 2573 | . . . . . 302 2271 Melee 479 | . . . . . 186 293 Ramming 11 | . . . . . . 11 Kinetic 1425 | . . . . . 545 880 Thermal 1238 | 63 . . . . 624 551 Explosive 2454 | . . . . . 183 2271 Electromagnetic 65 | 24 . . . . 24 17 Impact . | . . . . . . . Slashing 479 | . . . . . 186 293 Piercing . | . . . . . . . Highest Corruption 6 | . . . . . 2 6 Average Corruption 3 | . . . . . 2 4 Corruption Purged . | . . . . . . . Corruption Blocked . | . . . . . . . Effects 49 | . . . . . 5 44 Message Errors 5 | . . . . . 1 4 Matter Fused 24 | . . . . . 3 21 Heat Flow Errors 3 | . . . . . . 3 Energy Discharges 5 | . . . . . . 5 Data Loss (minor) 5 | . . . . . . 5 Data Loss (major) 2 | . . . . . . 2 Misfires 4 | . . . . . 1 3 Alerts 1 | . . . . . . 1 Overload Shots . | . . . . . . . Overflow Damage 217 | . . . . . 14 203 Projectiles 138 | . . . . . 14 124 Explosions 79 | . . . . . . 79 Melee . | . . . . . . . Knockbacks 20 | . . . . . 17 3 Impact . | . . . . . . . Kinetic 20 | . . . . . 17 3 Secondary . | . . . . . . . Self-Inflicted Damage 328 | . . . . . 32 296 Shots 16 | . . . . . 2 14 Rammed . | . . . . . . . Targets Rammed 1 | . . . . . . 1 Kicked 1 | . . . . . . 1 Crushed . | . . . . . . . Highest Temperature 499 | 90 . . . . 499 314 Average Temperature 88 | 41 . . . . 115 70 Received Heat Transfer 1053 | . . . . . 528 525 Effects 2 | . . . . . 2 . Shutdowns 1 | . . . . . 1 . Damage (minor) 1 | . . . . . 1 . Siege Activations . | . . . . . . . Martial Activations . | . . . . . . . Shielding Activations . | . . . . . . . Robots Disrupted . | . . . . . . . Combat Hostiles . | . . . . . . . Robots Corrupted . | . . . . . . . Combat Hostiles . | . . . . . . . Parts Fried . | . . . . . . . Impact Corruptions . | . . . . . . . Robots Melted . | . . . . . . . Combat Hostiles . | . . . . . . . Parts Melted 2 | . . . . . 1 1 Heat Transferred 3060 | 259 . . . . 1395 1406 Parts Sabotaged . | . . . . . . . Parts Stolen . | . . . . . . . Parts Stripped . | . . . . . . . Power Chain Reactions 1 | . . . . . 1 . Alert | -11 -10 -10 -10 -9 -8 -7 ------- Run | Yrd Mat Min Exi Min Mat Fac Maximum Alert Level 1 | . . . . . . 1 Low Security (%) 99 | 100 100 100 . 100 100 99 Level 1 . | . . . . . . . Level 2 . | . . . . . . . Level 3 . | . . . . . . . Level 4 . | . . . . . . . Level 5 . | . . . . . . . High Security . | . . . . . . . Max Security . | . . . . . . . Peak Influence 247 | 5 . . . . 90 247 Initial 28 | . . . . . . 28 Average 36 | . . . . . 27 50 Influence Increases 1400 | 10 . . . . 533 857 Destroy 0b10 Robot/C 816 | . . . . . 368 448 Destroy 0b10 Robot/NC 90 | 10 . . . . 12 68 Destroy Leader 222 | . . . . . 82 140 Allied During Kill 35 | . . . . . 35 . Successful Hack 4 | . . . . . 4 . Disable Machine 36 | . . . . . 12 24 Destroy Structure 161 | . . . . . 20 141 Lose Combat Pursuer 36 | . . . . . . 36 Influence Decreases 1275 | 10 . . . . 471 794 Entered New Map 34 | . . . . . . 34 Time Decay 782 | 10 . . . . 377 395 Lost Part 252 | . . . . . 37 215 Lost Ally 41 | . . . . . 41 . Purge Threat 166 | . . . . . 16 150 Squads Dispatched 16 | . . . . . 3 13 Investigation 2 | . . . . . 2 . Extermination 8 | . . . . . . 8 Reinforcement 6 | . . . . . 1 5 Assault . | . . . . . . . Garrison . | . . . . . . . Intercept . | . . . . . . . Searches Triggered . | . . . . . . . Construction Impeded 2 | . . . . . . 2 Haulers Reinforced . | . . . . . . . Active Scanning Responses . | . . . . . . . Cargo Convoy Interrupts . | . . . . . . . Stealth | -11 -10 -10 -10 -9 -8 -7 --------- Run | Yrd Mat Min Exi Min Mat Fac Distress Signals 4 | . . . . . 3 1 Communications Jammed . | . . . . . . . Distress Signals . | . . . . . . . Times Spotted 71 | . 1 . . . 30 40 Peak Tracking Total 7 | . . . . . 4 7 Tactical Retreats 4 | . . . . . . 4 ECM-based Alert Blocks 1 | . . . . . . 1 Traps | -11 -10 -10 -10 -9 -8 -7 ------- Run | Yrd Mat Min Exi Min Mat Fac Traps Triggered 6 | . . . . . 2 4 Indirectly . | . . . . . . . Trap Hack Attempts . | . . . . . . . Triggered . | . . . . . . . Disarmed . | . . . . . . . Reprogrammed . | . . . . . . . Reused . | . . . . . . . Traps Extracted . | . . . . . . . Installed . | . . . . . . . Triggered . | . . . . . . . Machines | -11 -10 -10 -10 -9 -8 -7 ---------- Run | Yrd Mat Min Exi Min Mat Fac Machines Disabled 3 | . . . . . 1 2 Max in Single Turn 1 | . . . . . 1 1 Garrison Access 1 | . . . . . 1 . Machines Repaired . | . . . . . . . Machines Dismantled . | . . . . . . . Machines Sabotaged . | . . . . . . . Overloaded Fab Kills . | . . . . . . . Hacking | -11 -10 -10 -10 -9 -8 -7 --------- Run | Yrd Mat Min Exi Min Mat Fac Machines Accessed 13 | . . . 1 . 7 5 Terminals 9 | . . . . . 5 4 Fabricators . | . . . . . . . Repair Stations . | . . . . . . . Recycling Units . | . . . . . . . Scanalyzers 1 | . . . . . 1 . Garrison Access 2 | . . . . . 1 1 Total Hacks 36 | . . . 1 . 22 13 Successful 10 | . . . 1 . 6 3 Failed 26 | . . . . . 16 10 Catastrophic 9 | . . . . . 7 2 Database Lockouts . | . . . . . . . Manual 25 | . . . 1 . 15 9 Terminals 28 | . . . . . 16 12 Fabricators . | . . . . . . . Repair Stations . | . . . . . . . Recycling Units . | . . . . . . . Scanalyzers 3 | . . . . . 3 . Garrison Access 4 | . . . . . 3 1 Terminal Hacks 8 | . . . 1 . 4 3 Record 2 | . . . . . 1 1 Unreport Threat 2 | . . . . . 1 1 Zone Layout 3 | . . . . . 2 1 Proto ID Catalog 1 | . . . 1 . . . Fabricator Hacks . | . . . . . . . Repair Station Hacks . | . . . . . . . Recycling Unit Hacks . | . . . . . . . Scanalyzer 1 | . . . . . 1 . Retrieve Study 1 | . . . . . 1 . Garrison Access Hacks 1 | . . . . . 1 . Seal Access 1 | . . . . . 1 . Unauthorized Hacks . | . . . . . . . Terminals . | . . . . . . . Fabricators . | . . . . . . . Repair Stations . | . . . . . . . Recycling Units . | . . . . . . . Scanalyzers . | . . . . . . . Garrison Access . | . . . . . . . Data Cores Recovered . | . . . . . . . Used . | . . . . . . . Hacking Detections 12 | . . . . . 7 5 Full Trace Events 1 | . . . . . 1 . Feedback Events . | . . . . . . . Feedback Blocked . | . . . . . . . Robot Schematics Acquired . | . . . . . . . Robots Built . | . . . . . . . Authchips . | . . . . . . . Time . | . . . . . . . Total Robot Build Rating . | . . . . . . . Part Schematics Acquired . | . . . . . . . Parts Built . | . . . . . . . Authchips . | . . . . . . . Time . | . . . . . . . Total Part Build Rating . | . . . . . . . Part Studies Acquired . | . . . . . . . Parts Repaired . | . . . . . . . Time . | . . . . . . . Parts Recycled . | . . . . . . . Recycled Matter . | . . . . . . . Retrieved Matter . | . . . . . . . Retrieved Components . | . . . . . . . Parts Scanalyzed . | . . . . . . . Part Schematics Acquired . | . . . . . . . Parts Damaged . | . . . . . . . Bothacking | -11 -10 -10 -10 -9 -8 -7 ------------ Run | Yrd Mat Min Exi Min Mat Fac Used RIF Installer . | . . . . . . . Robots Hacked . | . . . . . . . Non-combat . | . . . . . . . Combat . | . . . . . . . Robot Hacks Applied . | . . . . . . . Relay Couplers Released . | . . . . . . . Fabnet Peak Effective % . | . . . . . . . Robots Rewired . | . . . . . . . Allies Hacked . | . . . . . . . Hacks Repelled . | . . . . . . . Allies | -11 -10 -10 -10 -9 -8 -7 -------- Run | Yrd Mat Min Exi Min Mat Fac Total Allies 3 | . . . . 3 . . Largest Group 3 | . . . . 3 3 . Highest-Rated Group 40 | . . . . 40 40 . Highest-Rated Ally 16 | . . . . 16 16 . Total Orders . | . . . . . . . Ally Attacks 48 | . . . . . 48 . Total Damage 450 | . . . . . 450 . Kills 7 | . . . . . 7 . Allies Corrupted . | . . . . . . . Allies Melted . | . . . . . . . Intel | -11 -10 -10 -10 -9 -8 -7 ------- Run | Yrd Mat Min Exi Min Mat Fac Active Infowar (turns) 2107 | 28 46 438 550 202 813 30 Seismic 2077 | 28 46 438 550 202 813 . ECM 30 | . . . . . . 30 Robot Analysis Total . | . . . . . . . Derelict Logs Recovered 1 | . . 1 . . . . Drone Launches . | . . . . . . . Drone Recoveries . | . . . . . . . Exploration | -11 -10 -10 -10 -9 -8 -7 ------------- Run | Yrd Mat Min Exi Min Mat Fac Turns Passed 5754 | 113 46 438 550 202 1547 2858 Spaces Moved 2394 | 61 28 272 319 85 574 1055 Core 17 | 17 . . . . . . Treads 1683 | 44 28 272 319 85 574 361 Legs 674 | . . . . . . 674 Wheels 20 | . . . . . . 20 Hover . | . . . . . . . Flight . | . . . . . . . Fastest Speed 50 | 50 160 160 160 240 240 110 Average Speed 215 | 129 160 160 171 240 242 233 Slowest Speed 330 | 160 160 160 240 240 245 330 Overloaded Moves . | . . . . . . . Propulsion Burnouts . | . . . . . . . Robots Hopped . | . . . . . . . Potential Cave-ins . | . . . . . . . Cave-ins Triggered . | . . . . . . . Exploration Rate (%) 34 | 3 11 60 70 21 53 23 Regions Visited 6 Branch Regions 3 Pre-discovered Areas 2 | . . 1 . 1 . . Known Exits Taken . | . . . . . . . Unknown Exits Taken 6 | 1 1 1 1 1 1 . Scrap Searched 1 | . . 1 . . . . Spaces Dug . | . . . . . . . Terrain Destroyed 185 | . . . . . 20 165 Melee . | . . . . . . . Projectile 7 | . . . . . . 7 AOE 178 | . . . . . 20 158 Terrain Rammed . | . . . . . . . Walls Destroyed . | . . . . . . . Machines Disabled . | . . . . . . . Actions | -11 -10 -10 -10 -9 -8 -7 --------- Run | Yrd Mat Min Exi Min Mat Fac Total 2786 | 85 29 274 323 84 659 1332 Wait 120 | 4 . . . . 7 109 Move 2388 | 60 27 271 318 84 573 1055 Hop . | . . . . . . . Pick Up 66 | 7 1 2 3 . 17 36 Fast Attach 1 | 1 . . . . . . Attach 49 | 6 . . . . 9 34 Detach 4 | . . . . . 2 2 Swap 10 | 1 1 1 1 . 2 4 Drop 10 | 1 . . 1 . 2 6 Fire 121 | 5 . . . . 43 73 Melee 11 | . . . . . 4 7 Ram . | . . . . . . . Kick 1 | . . . . . . 1 Crush . | . . . . . . . Escape Stasis 5 | . . . . . . 5 Rewire . | . . . . . . . Trap . | . . . . . . . Miscellaneous . | . . . . . . . Route ------- -11/Scrapyard -10/Materials -10/Mines -10/Exiles -9/Mines -8/Materials -7/Factory History --------- Turn | Location | Event 36 | -11/Scrapyard | Discovered new exit (range 16) 114 | -11/Scrapyard | Entered Materials 136 | -10/Materials | Discovered new exit (range 16) 160 | -10/Materials | Entered Mines 317 | -10/Mines | Build established: Mutant 528 | -10/Mines | Learned location of Zion (-7) 544 | -10/Mines | Found a Scrap Suit stashed away for nefarious purposes 547 | -10/Mines | Found Scrap Suit 591 | -10/Mines | Deemed a non-threat by the Exiles lab entrance 591 | -10/Mines | Discovered new exit (range 5) 598 | -10/Mines | Entered Exiles 637 | -10/Exiles | Met 8R-AWN 664 | -10/Exiles | Met EX-HEX 720 | -10/Exiles | Met EX-BIN 742 | -10/Exiles | Aligned with FarCom system 744 | -10/Exiles | Given EX-Vault access code 781 | -10/Exiles | Opened EX-Vault 794 | -10/Exiles | Found 0b10 Alert Chip 823 | -10/Exiles | Warned to stay clear of 0b10 Research branches 876 | -10/Exiles | Met EX-DEC 1124 | -10/Exiles | Discovered new exit (range 10) 1148 | -10/Exiles | Left Exiles lab with 0b10 Alert Chip 1148 | -10/Exiles | Entered Mines 1149 | -9/Mines | Learned location of Storage (-9) 1175 | -9/Mines | Met a Derelict bent on vengeance 1228 | -9/Mines | Assisted by bots powering up and referring to "LRC-V3" 1328 | -9/Mines | Discovered new exit (range 9) 1350 | -9/Mines | Entered Materials 1350 | -8/Materials | Accompanied by 3 allies 1350 | -8/Materials | Evolved 4 slots: Utility x4 2885 | -8/Materials | Discovered new exit (range 5) 2897 | -8/Materials | Entered Factory 2897 | -7/Factory | Evolved 2 slots: Utility x2 3903 | -7/Factory | Lost 5 parts (2n2u1w) 3981 | -7/Factory | Lost 6 parts (1p1n1u3w) 4900 | -7/Factory | Core integrity fell below 50% 5217 | -7/Factory | Core integrity fell below 20% 5259 | -7/Factory | Lost 8 parts (1p1n2u4w) 5755 | -7/Factory | Destroyed by H-61 Shepherd with Heavy Assault Cannon Last Messages --------------- K-01 Serf collects debris. Acquired 48 matter. ALERT: Security rotation in progress. System corrupted: Energy discharge (-55). Triggered Blade Trap. Massive razor-sharp blades shoot up from within the floor. Imp. Medium Armor Plating severed. Adv. ECM Suite severed. ALERT: Potential suspicious activity detected, Programmers report to Factory Zone 6O. Acquired Adv. ECM Suite. Acquired Imp. Medium Armor Plating. System corrupted: Heat flow error (+280). U-05 Engineer lays Concrete. EM Pulse Gun destroyed. Knocked back. H-61 Shepherd calls for reinforcements. ALERT: Hostile activity reported, dispatching reinforcements to area. Map ----- +----------------------------------------------------+ | #?????????????????????????????# # | | #?????????????????????????###########/########### | | ###???????????????????????# | | #???????????????????????# ^ | | ###########?????????????# ^ | | " #????????????## ^ | | ######### ############## [ | | #?????????# * % ################ | | *##########?# #?????????????# | | # #?# ##?????????????# | | + "" # # = #?????????????# | | # "" # # !% ##?????????????# | | # "" # # = #?############## | | ## "Y # # H ## [ # | | ## "" # # ![ # ! # | | # "" # # [ #% ?# ?# | | ## "" # # # #?# # | | ## # # #p #?# = # | | #?######### ############### #?# * + | | +########### #????????????#" #?# #" | | [ # #???????????###% ### ! #" | | * # #???????????# # ?#" | | # ############# # ! ?#T | | # % # ?#" | | = # # ?#" | | w u @ ## ########??#" | | # % =%# #######???# | | + ^ k | | ####+#####+###; ############### | | #??????? ### ## #??????????# | | #?????""" #######+########?????????## | | #???""""" ## #??????????# | | ############???""""" ## #???????????# | | ????????????????"""" ## """""" #???????????# | | ????????????????? ## """""" #???????????# | | ?????????????????""" ## """""" #???????????# | | ?????????????????""" ## """""" #???????????# | | ??????????????????"" ## ?? #???????????# | | ???????????????????" ## """""???????????????# | | ??????????????????? ## """""???????????????# | | ???????????????????! ## """""???????????????# | | ??????????????????? ?# """?????????????????# | | ???????????????????####?# ??????????????????# | | ????????????????????????#######??????????????????? | | ?????????????????????????????????????????????????? | | ?????????????????????????????????????????????????? | | ?????????????????????????????????????????????????? | | ?????????????????????????????????????????????????? | | ?????????????????????????????????????????????????? | | ?????????????????????????????????????????????????? | +----------------------------------------------------+ Best States ------------- Heat Dissipation 34 Energy Generation 15 Energy Capacity 250 Matter Stores 400 Matter Capacity 400 Sight Range 16 Terrain Scan Density 10 ECM Strength 2 Armor Coverage 225 Weapon Cycling 15 Evasion (%) 50 Targeting Accuracy 14 Recoil Reduction 2 Energy Filtering 30 Offensive Hacking 10 Item Schematics ----------------- None Robot Schematics ------------------ None Fabricated ------------ Nothing Repaired ---------- Nothing Studied --------- None Alien Tech Used ----------------- None Achievements -------------- Use The Force Challenges ------------ None Game ------ Seed CarbideAlertSubcomponent Manual? 0 Play Time 00:33:04 Cumulative 29.7 hours Start 2026.02.18 @ 01:12:22 End 2026.02.18 @ 01:42:49 Sessions 1 Manual Loads 0 Difficulty Rogue Special Mode None Game No. 71 Rogue 71 Adventurer 0 Explorer 0 Win Type - Total 0 Types 0/0/0/0/0/0/0/0/0/0 Lore% 24 Gallery% 30 Achievement% 22 Wizard Run 0 Options --------- Layout 1 ASCII 0 Keyboard 0 Movement Mouse Keybinds 0 Fullscreen 1 Font 24/Smallcaps Map View 50x35 Zoom Use 0% Tactical HUD 0 Map Filters NONE Filters NONE Steam 1 RUN: 61395eb4-edd5-434f-ba85-51525e797fe1